bitfinex/quotes_ETHUSD_20250616
["timestamp","ask_amount","ask_price","bid_price","bid_amount"]
[1750107021279,1.959,2675.5,2675.1,3.73817801]
[1750107022721,1.959,2675.5,2675.2,3.73802968]
[1750107022926,5.69664093,2675.5,2675.0,3.73831153]
[1750107023220,1.959,2675.5,2675.1,3.73814696]
[1750107024117,1.959,2675.5,2675.0,3.73831153]
[1750107024118,5.69664881,2675.5,2675.0,3.73824847]
[1750107024323,5.69664881,2675.5,2675.0,3.73821003]
[1750107024686,5.69664881,2675.5,2675.0,3.77558853]
[1750107025089,1.959,2675.5,2675.1,3.73815587]
[1750107025905,1.959,2675.6,2675.2,3.73792835]
[1750107026100,1.959,2675.6,2675.1,3.73814974]
[1750107026718,1.959,2675.6,2675.3,3.73787613]
[1750107027722,1.959,2675.6,2675.4,3.73769071]
[1750107030426,1.959,2675.6,2675.2,3.7753342]
[1750107030427,1.959,2675.6,2675.3,3.73781773]
[1750107030629,1.959,2675.6,2675.4,3.73774273]
[1750107031591,1.959,2675.6,2674.9,4.67]
[1750107031791,0.799,2675.4,2675.0,3.73825216]
[1750107032024,0.799,2675.4,2675.1,3.73815044]
[1750107032495,0.799,2675.4,2675.0,3.73823765]
[1750107032910,0.799,2675.4,2675.1,3.73817712]
[1750107033311,0.799,2675.4,2675.0,3.73824155]
[1750107033928,0.799,2675.4,2675.1,3.73817233]
[1750107034319,0.799,2675.4,2675.0,3.73824889]
[1750107034564,4.53678224,2675.4,2675.0,3.73824889]
[1750107034770,0.799,2675.4,2674.9,8.40838261]
[1750107034907,4.53677561,2675.4,2674.9,4.67]
[1750107035107,4.53677561,2675.4,2674.9,8.40837706]
[1750107035549,4.53677561,2675.4,2675.0,3.73830319]
[1750107036055,3.73792217,2675.3,2674.9,4.67]
[1750107036455,4.53678111,2675.4,2674.9,8.40842872]
[1750107036809,3.73790462,2675.3,2674.9,8.40842872]
[1750107037165,5.11536641,2675.3,2674.7,10.45566396]
[1750107037460,3.73810838,2675.2,2674.7,10.45566396]
[1750107037935,3.73810838,2675.2,2674.8,3.73859646]
[1750107038640,3.73810838,2675.2,2674.7,3.73867198]
[1750107038942,3.73810838,2675.2,2674.8,3.73857891]
[1750107039344,1.37745335,2675.3,2674.9,3.738419]
[1750107039345,0.55,2675.3,2674.9,3.738419]
[1750107039543,4.28792069,2675.3,2674.9,3.738419]
[1750107039844,4.28792069,2675.3,2674.8,3.73851933]
[1750107040210,0.55,2675.3,2674.9,3.73845378]
[1750107040411,0.55,2675.3,2674.8,3.73852478]
[1750107040613,4.2879944,2675.3,2674.8,3.73852478]
[1750107041524,4.2879944,2675.3,2674.9,3.73845118]
[1750107041926,4.2879944,2675.3,2674.8,3.73851907]
[1750107043333,4.2879944,2675.3,2674.4,14.70770944]
[1750107043334,19.14446601,2675.3,2674.6,1.0960745]
[1750107043533,0.7896,2674.9,2674.5,3.7389668]
[1750107043750,2.7486,2674.9,2674.5,3.7389668]
[1750107043943,6.48706904,2674.9,2674.4,4.83518677]
[1750107044320,6.48711833,2674.9,2674.4,4.83509615]
[1750107044524,6.48711833,2674.9,2674.4,3.73902165]
[1750107044725,2.7486,2674.9,2674.5,3.73897699]
[1750107044922,6.48706865,2674.9,2674.4,3.73911446]
[1750107045333,3.73860101,2674.8,2674.3,3.73922099]
[1750107045547,3.73860423,2674.8,2674.2,4.83549944]
[1750107045750,3.73861242,2674.8,2674.3,3.73921248]
[1750107047203,2.7486,2674.9,2674.1,1.1460745]
[1750107047363,3.73911573,2674.5,2674.1,0.05]
[1750107047767,0.828,2674.5,2674.1,0.05]
[1750107047966,3.73933866,2674.3,2674.1,0.05]
[1750107048269,3.73922354,2674.4,2674.1,0.05]
[1750107048470,0.828,2674.5,2674.1,0.05]
[1750107048672,4.56708499,2674.5,2674.1,0.05]
[1750107049051,0.828,2674.5,2674.1,3.78954936]
[1750107049256,1.945,2674.4,2674.1,3.78954936]
[1750107049465,1.945,2674.6,2674.4,3.73910538]
[1750107049666,3.73825776,2675.1,2674.3,0.7976]
[1750107049667,3.73838628,2675.0,2674.3,0.7976]
[1750107049976,3.7386149,2674.8,2674.3,11.24283983]
[1750107050194,3.73904245,2674.5,2674.1,0.05]
[1750107050544,3.73904245,2674.5,2674.1,6.756]
[1750107050742,4.56625342,2674.5,2674.1,0.05]
[1750107051763,1.945,2674.4,2674.2,3.73932642]
[1750107053192,1.945,2674.4,2674.3,3.73929626]
[1750107053506,1.945,2675.2,2674.5,3.73901663]
[1750107053707,1.945,2675.2,2674.4,4.53552755]
[1750107053708,1.945,2675.2,2675.0,3.73821991]
[1750107054502,1.945,2675.2,2675.1,3.73817801]
[1750107055054,1.945,2675.2,2674.9,3.73845751]
[1750107055367,1.945,2675.2,2675.0,3.73829803]
[1750107056169,1.945,2675.2,2674.9,3.73838131]
[1750107056511,0.7963,2675.4,2675.0,3.73830699]
[1750107056703,2.7413,2675.4,2675.0,3.73830699]
[1750107057069,3.73800035,2675.3,2674.8,6.701]
[1750107057280,3.73805073,2675.2,2674.8,6.701]
[1750107057708,7.12702139,2675.4,2674.9,3.73844367]
[1750107057903,2.7413,2675.4,2675.2,3.7379721]
[1750107058102,2.7413,2675.4,2675.1,3.73814311]
[1750107058311,2.7413,2675.4,2675.0,3.73826993]
[1750107058511,6.47910122,2675.4,2674.9,3.73839167]
[1750107058675,4.76298037,2675.4,2675.0,3.73828468]
[1750107058872,2.81798037,2675.4,2675.0,3.73828468]
[1750107059073,1.945,2675.4,2675.1,3.73809773]
[1750107059285,1.945,2675.4,2675.2,3.73792563]
[1750107059502,10.0,2675.6,2675.2,3.73792563]
[1750107059727,10.8328,2676.0,2675.5,3.7375524]
[1750107059913,1.945,2675.9,2675.5,3.7375524]
[1750107060204,11.945,2675.8,2675.4,3.73768101]
[1750107060407,11.945,2675.8,2675.2,3.73798535]
[1750107060609,11.945,2675.8,2675.4,3.73767393]
[1750107061313,15.68220517,2675.8,2675.1,3.73811561]
[1750107061480,13.73759081,2675.6,2675.1,3.73811561]
[1750107061996,13.73759081,2675.6,2675.2,3.73802796]
[1750107062224,10.0,2675.6,2675.2,3.73802796]
[1750107063507,3.73761968,2675.5,2675.0,3.73819135]
[1750107063684,3.73761968,2675.5,2675.0,5.3493868]
[1750107064016,13.73739946,2675.7,2675.3,3.73788655]
[1750107064317,13.73739946,2675.7,2675.2,3.73799355]
[1750107064792,3.73748675,2675.6,2675.2,3.73799355]
[1750107065211,3.73765153,2675.5,2675.0,1.61119545]
[1750107065419,3.73780368,2675.4,2674.9,11.26217645]
[1750107065614,0.8232,2675.4,2674.7,1.91946198]
[1750107065815,0.8232,2675.4,2674.7,11.2475761]
[1750107065816,3.73812596,2675.2,2674.7,11.2475761]
[1750107065978,3.73812596,2675.2,2674.7,7.5089]
[1750107066180,2.77491368,2675.2,2674.6,4.67]
[1750107066504,2.77491368,2675.2,2674.6,8.40887638]
[1750107066505,3.73829674,2675.1,2674.6,8.40887638]
[1750107067817,3.73829674,2675.1,2674.7,3.73872193]
[1750107068021,3.73829674,2675.1,2674.6,8.40877866]
[1750107068317,3.73833507,2675.0,2674.6,4.67]
[1750107068681,3.73825449,2675.1,2674.6,4.67]
[1750107070012,3.73833152,2675.0,2674.5,3.73893872]
[1750107072033,3.73846747,2674.9,2674.5,3.73893872]
[1750107072440,3.73837969,2675.0,2674.5,3.73893872]
[1750107073525,3.73851948,2674.9,2674.4,0.8169]
[1750107073692,4.50230706,2674.8,2674.3,3.73916724]
[1750107073895,0.7637,2674.8,2674.4,3.73915115]
[1750107074636,4.50229844,2674.8,2674.3,3.73922705]
[1750107074804,0.7637,2674.8,2674.2,1.10256198]
[1750107075009,0.7637,2674.8,2674.5,3.73901328]
[1750107075909,0.7637,2674.8,2674.4,3.73908118]
[1750107076503,4.50230831,2674.8,2674.4,3.73908118]
[1750107076916,0.7637,2674.8,2674.1,5.69040919]
[1750107077258,4.50234562,2674.8,2674.3,3.73917462]
[1750107078857,3.7387608,2674.7,2674.2,3.73939893]
[1750107079156,5.66588091,2674.6,2674.1,1.15256198]
[1750107079358,3.73938711,2674.3,2674.1,0.05]
[1750107079656,5.32638801,2674.8,2674.1,0.05]
[1750107079657,4.57071726,2675.4,2674.7,3.73862538]
[1750107079857,3.73834508,2675.0,2674.5,3.73901663]
[1750107080059,0.8329,2675.4,2674.5,3.73901663]
[1750107080259,3.73839041,2675.0,2674.5,3.73901663]
[1750107080422,1.927,2674.9,2674.5,3.73901663]
[1750107081526,1.927,2674.9,2674.5,3.73894493]
[1750107082262,1.927,2674.9,2674.6,3.73885222]
[1750107083441,1.927,2674.9,2674.5,3.73894047]
[1750107085153,3.66095709,2674.9,2674.3,1.88088053]
[1750107085339,3.73867209,2674.8,2674.3,10.41320146]
[1750107085549,3.73867209,2674.8,2674.4,3.73912836]
[1750107086158,3.73867209,2674.8,2674.3,3.73922286]
[1750107086358,5.30844936,2674.8,2674.3,3.73921696]
[1750107086563,5.30844936,2674.8,2674.1,7.82728053]
[1750107086868,1.927,2674.7,2674.5,3.73893014]
[1750107087636,10.0,2675.0,2674.6,3.73878932]
[1750107087970,13.73838184,2675.0,2674.5,3.73895408]
[1750107088272,1.927,2674.9,2674.5,3.73895408]
[1750107088489,13.73838184,2675.0,2674.5,3.73895408]
[1750107088490,1.927,2674.8,2674.5,3.73895408]
[1750107089132,13.73838184,2675.0,2674.5,3.73895408]
[1750107089133,1.927,2674.7,2674.5,3.73901204]
[1750107090437,5.66583423,2674.7,2674.1,1.15428053]
[1750107090634,4.49508468,2674.6,2674.1,3.78949712]
[1750107090839,3.73901932,2674.5,2674.1,0.05]
[1750107091368,0.7562,2674.6,2674.2,3.73941431]
[1750107092634,1.928,2674.5,2674.3,3.73925284]
[1750107092865,4.49489996,2674.8,2674.3,0.75286781]
[1750107092866,4.49482467,2674.8,2674.3,0.75286781]
[1750107093166,1.928,2674.7,2674.3,3.73929626]
[1750107093364,1.928,2674.7,2674.2,3.73943609]
[1750107093365,1.928,2674.7,2674.4,3.73914682]
[1750107093968,0.7562,2674.8,2674.6,3.73881587]
[1750107093969,1.928,2674.8,2674.6,3.73881587]
[1750107094457,1.928,2674.8,2674.7,3.73873705]
[1750107096058,1.928,2674.8,2674.6,3.73879633]
[1750107096430,1.928,2674.8,2674.7,3.73873705]
[1750107098547,10.0,2675.3,2674.7,3.73873705]
[1750107098769,1.927,2675.2,2675.1,3.73817801]
[1750107099369,1.927,2675.2,2675.0,3.73825267]
[1750107099670,1.927,2675.2,2675.1,3.73817801]
[1750107099871,1.927,2675.2,2675.0,3.73825892]
[1750107100963,1.927,2675.2,2674.9,3.73839407]
[1750107102880,1.927,2675.2,2675.0,3.73831716]
[1750107103084,1.927,2675.2,2674.9,3.73837838]
[1750107103385,1.927,2675.2,2675.0,3.73819567]
[1750107103742,1.927,2675.2,2674.7,11.22448092]
[1750107103946,1.927,2675.2,2674.9,3.73838964]
[1750107105670,1.927,2675.2,2674.7,11.22449056]
[1750107105671,3.73830798,2675.1,2674.6,4.8433201]
[1750107105868,3.73830798,2675.1,2674.6,10.39081222]
[1750107106884,3.73830798,2675.1,2674.6,3.73881222]
[1750107108167,4.55224827,2675.0,2674.5,15.06095091]
[1750107108459,4.55224827,2675.0,2674.5,10.39095091]
[1750107108666,5.57404683,2675.0,2674.5,3.73893053]
[1750107109192,0.8139,2675.0,2674.7,3.73873132]
[1750107109493,0.8139,2675.2,2674.8,3.73853103]
[1750107109689,1.908,2674.9,2674.8,3.73853103]
[1750107109890,1.908,2674.9,2674.7,3.7387239]
[1750107109891,1.908,2674.9,2674.7,3.73865664]
[1750107111079,1.908,2674.9,2674.8,3.73859727]
[1750107111269,1.908,2674.9,2674.7,3.73866695]
[1750107112590,2.0988,2674.9,2674.7,3.73866695]
[1750107112772,1.908,2674.9,2674.7,3.73866695]
[1750107113985,1.908,2674.9,2674.8,3.73859727]
[1750107114181,0.8139,2675.2,2674.9,3.7384312]
[1750107114182,1.908,2675.1,2674.9,3.7384312]
[1750107114761,1.908,2675.1,2675.0,3.73831775]
[1750107115095,1.908,2675.3,2674.9,0.7625]
[1750107115259,1.908,2675.3,2675.2,3.73792805]
[1750107115893,13.73748699,2675.6,2675.2,3.73792805]
[1750107116096,1.908,2675.5,2675.2,3.73792805]
[1750107116299,1.908,2675.5,2675.1,3.73810472]
[1750107116603,1.908,2675.5,2675.2,3.73803599]
[1750107117003,7.3998,2675.7,2674.9,0.7625]
[1750107117004,0.7588,2675.7,2675.3,3.73782772]
[1750107117182,1.908,2675.5,2675.4,3.73775883]
[1750107117499,0.55,2675.9,2675.5,3.73760551]
[1750107117803,0.55,2675.9,2675.3,3.73787464]
[1750107117804,1.908,2675.7,2675.4,3.73767977]
[1750107117970,1.908,2675.7,2675.3,3.73784714]
[1750107118698,1.908,2675.7,2675.4,3.73774972]
[1750107119007,1.908,2675.7,2675.5,3.73761372]
[1750107120404,1.908,2675.7,2675.2,6.638]
[1750107120908,1.908,2675.7,2675.4,3.73773858]
[1750107122203,1.908,2675.7,2675.3,3.73787182]
[1750107122805,1.908,2675.7,2675.4,3.73775844]
[1750107123505,1.908,2675.7,2675.3,3.73787338]
[1750107123708,1.908,2675.7,2675.2,6.638]
[1750107123874,1.908,2675.7,2675.6,3.73747944]
[1750107124411,11.908,2675.9,2675.5,3.737553]
[1750107124599,11.908,2675.9,2675.6,3.73740711]
[1750107124795,1.908,2675.9,2675.3,0.8087]
[1750107125106,0.7653,2675.8,2675.1,6.631]
[1750107125306,4.50257045,2675.8,2675.4,3.73775228]
[1750107125511,4.50257045,2675.8,2675.3,3.73781997]
[1750107125823,3.73737011,2675.7,2675.2,3.7379852]
[1750107126024,10.0,2675.7,2675.3,3.73788803]
[1750107127516,13.73738818,2675.7,2675.3,3.73788803]
[1750107127677,12.76245775,2675.7,2675.3,3.73788803]
[1750107128401,16.49981806,2675.7,2675.2,3.73798297]
[1750107128804,12.76245775,2675.7,2675.3,3.7378836]
[1750107129310,16.49981946,2675.7,2675.2,3.73799992]
[1750107129614,16.49981946,2675.7,2675.3,3.73788761]
[1750107130613,16.49981946,2675.7,2675.2,3.73796398]
[1750107130822,3.73749344,2675.6,2675.2,3.73796398]
[1750107132225,16.4998809,2675.7,2675.2,3.73796398]
[1750107133019,12.76245775,2675.7,2675.3,3.73788747]
[1750107133182,12.76245775,2675.7,2675.1,10.3581488]
[1750107133183,18.40780769,2675.7,2675.1,10.3581488]
[1750107133385,3.73756839,2675.6,2675.0,3.73820626]
[1750107133584,18.40786928,2675.7,2675.2,3.73802562]
[1750107133986,21.29045775,2675.7,2675.3,3.73789835]
[1750107134218,11.908,2675.7,2675.1,7.47678983]
[1750107134515,1.908,2675.8,2675.5,3.73752146]
[1750107135321,1.908,2675.8,2675.4,3.73768801]
[1750107137219,1.908,2675.8,2675.5,3.73755153]
[1750107137384,1.908,2675.8,2675.4,3.73773511]
[1750107137721,8.26268983,2675.6,2675.0,1.10450788]
[1750107137932,3.73797529,2675.3,2674.8,3.73856031]
[1750107138215,1.887,2675.2,2675.0,3.73831696]
[1750107138423,1.887,2675.2,2675.1,3.73817801]
[1750107138826,1.887,2675.7,2675.2,0.7914]
[1750107138991,1.887,2675.7,2675.4,3.73773807]
[1750107139325,1.887,2675.7,2675.3,3.77521002]
[1750107139528,1.887,2675.7,2675.2,0.7914]
[1750107139744,13.73756705,2675.6,2675.0,3.73822567]
[1750107140289,13.73756705,2675.6,2675.1,3.73814424]
[1750107140489,11.2146425,2675.4,2674.7,4.84316558]
[1750107140732,0.7859,2675.1,2674.6,1.10450788]
[1750107140918,0.7859,2675.1,2674.4,6.13548691]
[1750107140919,1.887,2675.0,2674.5,3.73901663]
[1750107141120,5.62533167,2675.0,2674.5,3.73901663]
[1750107141595,5.62533167,2675.0,2674.3,5.63518185]
[1750107141596,1.887,2675.0,2674.6,3.73886224]
[1750107141930,8.498,2675.0,2674.5,3.73897235]
[1750107142342,8.498,2675.0,2674.6,3.73887684]
[1750107142630,8.498,2675.0,2674.7,3.73873498]
[1750107142829,0.7859,2675.1,2674.8,3.73859139]
[1750107142990,0.7859,2675.1,2674.6,3.7388242]
[1750107143196,1.887,2675.0,2674.7,3.73867302]
[1750107144918,1.887,2675.0,2674.8,3.73856957]
[1750107145118,1.887,2675.0,2674.6,3.73887684]
[1750107145429,1.887,2675.0,2674.6,3.73882304]
[1750107145642,1.887,2675.0,2674.7,3.73871592]
[1750107145845,0.7859,2674.9,2674.4,4.84360377]
[1750107146001,1.887,2675.0,2674.5,0.03738387]
[1750107146328,5.62533634,2675.0,2674.5,3.73894369]
[1750107146734,5.62533634,2675.0,2674.6,3.73886581]
[1750107146937,1.887,2675.0,2674.6,3.73886581]
[1750107147727,5.62533749,2675.0,2674.6,3.73886581]
[1750107148630,1.887,2675.0,2674.6,3.73886581]
[1750107149094,5.62533796,2675.0,2674.5,3.73895743]
[1750107149510,3.73849176,2674.9,2674.5,3.73895743]
[1750107150334,4.55185724,2674.7,2674.3,3.73918658]
[1750107150502,0.8131,2674.7,2674.2,6.603]
[1750107150828,0.8131,2674.7,2674.3,3.73928726]
[1750107152804,0.8131,2674.7,2674.4,3.73913552]
[1750107153400,0.8131,2674.7,2674.3,3.73921943]
[1750107154545,0.8131,2674.7,2674.4,3.73914739]
[1750107155436,0.8131,2674.7,2674.3,3.73922502]
[1750107156560,1.2682698,2674.7,2674.1,0.05]
[1750107156727,3.73909993,2674.5,2674.1,0.05]
[1750107156928,3.73909993,2674.5,2674.1,3.78955516]
[1750107157325,3.73909993,2674.5,2674.1,3.78956466]
[1750107157852,3.73902105,2674.5,2674.1,0.05]
[1750107158362,3.7392412,2674.4,2674.1,0.05]
[1750107158725,0.8225,2674.3,2674.1,3.78949486]
[1750107161474,0.8225,2674.3,2674.1,0.05]
[1750107162045,0.8225,2674.3,2674.1,3.78955512]
[1750107162647,0.8225,2674.3,2674.1,0.05]
[1750107164065,1.46736001,2674.3,2674.1,0.05]
[1750107164373,1.3018,2673.5,2673.1,0.05]
[1750107164568,9.36378983,2673.4,2673.1,0.05]
[1750107164884,5.62762165,2673.4,2673.1,0.05]
[1750107165065,3.74070808,2673.3,2673.1,0.05]
[1750107165268,0.56277081,2673.2,2673.1,0.05]
[1750107165661,4.30360576,2673.2,2673.1,0.05]
[1750107165840,5.05540576,2673.2,2673.1,0.05]
[1750107166534,1.31457081,2673.2,2673.1,0.05]
[1750107168373,5.05540576,2673.2,2673.1,0.05]
[1750107168744,1.31457081,2673.2,2673.1,0.05]
[1750107172583,5.60540576,2673.2,2673.1,0.05]
[1750107173465,1.86457081,2673.2,2673.1,0.05]
[1750107173672,5.60540576,2673.2,2673.1,0.05]
[1750107174063,1.86457081,2673.2,2673.1,0.05]
[1750107174587,5.60540576,2673.2,2673.1,0.05]
[1750107175084,15.60540576,2673.2,2673.1,0.05]
[1750107178467,22.18240576,2673.2,2673.1,0.05]
[1750107179398,24.42840576,2673.2,2673.1,0.05]
[1750107182463,31.90519559,2673.2,2673.1,0.05]
[1750107182668,32.42641465,2673.2,2673.1,0.05]
[1750107183261,28.6855797,2673.2,2672.1,0.05]
[1750107183462,14.29223486,2672.2,2672.1,0.05]
[1750107183665,25.76163486,2672.2,2672.1,0.05]
[1750107184370,23.51563486,2672.2,2672.1,0.05]
[1750107185909,23.89292764,2672.2,2672.1,0.05]
[1750107191526,12.55152764,2672.2,2672.1,0.05]
[1750107191830,1.868,2672.2,2672.1,3.79237491]
[1750107192036,7.906,2672.3,2672.2,3.74223486]
[1750107192674,11.868,2672.5,2672.1,0.833]
[1750107193294,15.60992434,2672.5,2672.1,0.833]
[1750107193507,7.47678983,2672.4,2672.1,0.833]
[1750107193804,4.29223486,2672.2,2672.1,0.05]
[1750107195713,10.85423486,2672.2,2672.1,0.05]
[1750107196315,7.112,2672.2,2672.1,0.05]
[1750107196610,10.85423486,2672.2,2672.1,0.05]
[1750107198003,7.112,2672.2,2672.1,0.05]
[1750107198678,10.85423486,2672.2,2672.1,0.05]
[1750107198885,11.49909487,2672.2,2672.1,0.05]
[1750107199211,7.75686001,2672.2,2672.1,0.05]
[1750107199417,1.868,2672.3,2672.1,3.79231201]
[1750107199622,1.868,2672.3,2672.2,3.74223486]
[1750107199915,1.868,2672.3,2672.2,4.49813486]
[1750107200482,1.848,2672.4,2672.3,3.74209482]
[1750107200678,10.0,2672.6,2672.2,0.7559]
[1750107200924,1.848,2672.4,2672.2,0.7559]
[1750107202839,4.29223486,2672.2,2672.1,0.05]
[1750107203032,0.55,2672.2,2672.1,0.05]
[1750107203542,4.29223486,2672.2,2672.1,0.05]
[1750107203760,10.0,2672.6,2672.1,0.05]
[1750107203906,1.848,2672.5,2672.3,0.7947]
[1750107204273,1.31355404,2673.5,2672.4,7.47678983]
[1750107204400,3.74049367,2673.5,2672.9,7.47678983]
[1750107204705,3.74031816,2673.6,2673.0,0.7947]
[1750107204905,3.74031816,2673.6,2673.1,3.74094478]
[1750107205118,3.74031816,2673.6,2673.0,0.7947]
[1750107205119,0.7924,2673.8,2673.0,0.7947]
[1750107205345,10.29009494,2673.8,2673.1,3.74088561]
[1750107205660,7.47678983,2673.7,2673.0,0.7947]
[1750107205859,7.47678983,2673.7,2673.2,3.74072027]
[1750107206657,11.21694157,2673.7,2673.2,3.74072027]
[1750107206861,3.74015174,2673.7,2673.2,3.74072027]
[1750107207061,6.549,2673.8,2673.0,0.7947]
[1750107207568,6.1377541,2673.3,2672.5,0.7596]
[1750107207719,2.397,2673.3,2672.7,0.7596]
[1750107207918,3.74099033,2673.1,2672.7,0.7596]
[1750107208123,3.74088398,2673.2,2672.7,4.50112115]
[1750107208723,3.74088398,2673.2,2672.7,0.7596]
[1750107209150,3.74099184,2673.1,2672.7,0.7596]
[1750107209352,0.9878706,2673.1,2672.7,4.50112486]
[1750107209557,4.72887566,2673.1,2672.7,0.7596]
[1750107210077,4.72887566,2673.1,2672.7,4.50111933]
[1750107210078,0.9878706,2673.1,2672.7,4.50111933]
[1750107210379,0.42016807,2673.4,2673.2,3.74081386]
[1750107212078,0.42016807,2673.4,2673.1,4.49460352]
[1750107212856,0.42016807,2673.4,2673.2,3.74078999]
[1750107213059,0.42016807,2673.4,2673.3,3.74069502]
[1750107213276,0.42016807,2673.4,2673.3,4.53180161]
[1750107213441,0.42016807,2673.4,2673.3,6.42062028]
[1750107214448,0.42016807,2673.4,2673.3,4.53180161]
[1750107215939,0.30784282,2673.4,2673.3,9.20179401]
[1750107216144,0.30784282,2673.4,2673.3,9.16439502]
[1750107216344,0.30784282,2673.4,2673.3,19.16439502]
[1750107216564,0.30784282,2673.4,2673.3,22.97944156]
[1750107217248,0.25478368,2673.4,2673.3,22.97944156]
[1750107218972,0.16957464,2673.4,2673.3,22.97944156]
[1750107219211,0.16957464,2673.4,2673.3,18.30944156]
[1750107219703,0.16957464,2673.4,2673.3,18.85944156]
[1750107220008,0.16957464,2673.4,2673.3,19.96394944]
[1750107220379,0.16957464,2673.4,2673.3,38.96051538]
[1750107226717,0.16957464,2673.4,2673.3,37.8560075]
[1750107226916,0.16957464,2673.4,2673.3,42.1157682]
[1750107228212,0.16957464,2673.4,2673.3,23.11920226]
[1750107228413,0.16957464,2673.4,2673.3,24.21279607]
[1750107228585,0.16957464,2673.4,2673.3,30.18779607]
[1750107229599,0.16957464,2673.4,2673.3,29.09420226]
[1750107230618,0.16957464,2673.4,2673.3,29.64420226]
[1750107231381,0.16957464,2673.4,2673.3,31.10968917]
[1750107232087,0.16957464,2673.4,2673.3,24.58468917]
[1750107232386,0.16957464,2673.4,2673.3,32.93568917]
[1750107233494,0.16957464,2673.4,2673.3,31.47020226]
[1750107236605,0.16957464,2673.4,2673.3,29.08620226]
[1750107237228,0.16957464,2673.4,2673.3,30.54457583]
[1750107237397,0.16957464,2673.4,2673.3,29.08620226]
[1750107237595,0.16957464,2673.4,2673.3,30.5448789]
[1750107238293,0.16957464,2673.4,2673.3,30.54487291]
[1750107238927,0.16957464,2673.4,2673.3,29.08620226]
[1750107240431,0.16957464,2673.4,2673.3,31.26278853]
[1750107240905,0.16957464,2673.4,2673.3,38.74284314]
[1750107241101,0.16957464,2673.4,2673.3,32.22584314]
[1750107241425,0.16957464,2673.4,2673.3,38.73884314]
[1750107241630,0.16957464,2673.4,2673.3,36.56225687]
[1750107241826,0.16957464,2673.4,2673.3,30.04925687]
[1750107242027,0.16957464,2673.4,2673.3,8.00045572]
[1750107242226,0.16957464,2673.4,2673.3,14.51245572]
[1750107242628,0.16957464,2673.4,2673.3,22.74421033]
[1750107242930,0.16957464,2673.4,2673.3,32.74421033]
[1750107243131,0.16957464,2673.4,2673.3,36.55925687]
[1750107243432,0.16957464,2673.4,2673.3,38.73584314]
[1750107244143,0.16957464,2673.4,2673.3,36.55925687]
[1750107244312,0.16957464,2673.4,2673.3,38.38825687]
[1750107244509,0.16957464,2673.4,2673.3,38.93825687]
[1750107244712,0.16957464,2673.4,2673.3,41.85099304]
[1750107245107,0.16957464,2673.4,2673.3,38.93825687]
[1750107246231,9.35140003,2674.7,2674.6,3.73887684]
[1750107246532,1.44240003,2674.7,2674.6,10.24687684]
[1750107247146,1.44240003,2674.7,2674.6,6.508]
[1750107248112,1.44240003,2674.7,2674.6,10.24687684]
[1750107248313,1.44240003,2674.7,2674.6,6.508]
[1750107249547,1.44240003,2674.7,2674.6,10.24687684]
[1750107250067,0.61370003,2674.7,2674.6,10.24687684]
[1750107250277,0.61370003,2674.7,2674.6,6.508]
[1750107250493,0.61370003,2674.7,2674.4,3.73908067]
[1750107250653,1.43090003,2674.7,2674.5,6.504]
[1750107250851,1.43090003,2674.7,2674.6,6.504]
[1750107250852,5.16973835,2674.7,2674.6,6.504]
[1750107251057,1.43090003,2674.7,2674.5,6.504]
[1750107251255,0.8172,2674.6,2674.4,6.504]
[1750107251551,0.61370003,2674.7,2674.5,3.73901663]
[1750107251751,0.61370003,2674.7,2674.6,10.27926294]
[1750107251956,0.61370003,2674.7,2674.6,10.24187684]
[1750107254280,0.61370003,2674.7,2674.6,6.501]
[1750107254989,1.40830003,2674.7,2674.6,6.5]
[1750107255190,1.40830003,2674.7,2674.5,6.499]
[1750107256303,0.7946,2674.5,2674.0,1.0984202]
[1750107256512,0.7946,2674.3,2674.1,6.498]
[1750107256867,0.7946,2674.3,2673.9,3.73976949]
[1750107257210,0.7946,2674.3,2674.0,6.498]
[1750107257361,4.53391991,2674.3,2674.0,6.498]
[1750107257715,1.80479935,2674.3,2673.9,6.498]
[1750107258087,5.54415534,2674.3,2673.9,6.498]
[1750107258298,5.54415534,2674.3,2673.9,3.73983981]
[1750107258502,5.54415534,2674.3,2673.9,10.23783981]
[1750107258797,1.80479935,2674.3,2674.0,3.73970872]
[1750107258968,1.80479935,2674.3,2673.9,10.23782948]
[1750107259169,1.80479935,2674.3,2674.0,3.73961617]
[1750107259368,0.7946,2674.3,2674.2,3.73943609]
[1750107261503,0.8105,2674.5,2674.4,3.73904984]
[1750107261666,0.8105,2674.5,2674.3,6.496]
[1750107261872,0.8105,2674.5,2674.1,3.73953349]
[1750107262195,0.8105,2674.5,2674.2,6.494]
[1750107263105,0.63784295,2674.4,2673.8,1.0984202]
[1750107263311,3.73954031,2674.2,2673.8,6.493]
[1750107263515,0.8229,2674.1,2673.8,10.23298632]
[1750107263810,0.8229,2674.1,2673.7,3.74005586]
[1750107263970,0.8229,2674.1,2673.8,6.493]
[1750107264773,0.8229,2674.1,2673.8,10.23296374]
[1750107265215,0.8229,2674.1,2673.8,6.493]
[1750107265415,0.8229,2674.1,2673.8,10.2329869]
[1750107266019,4.56251029,2674.1,2673.8,6.493]
[1750107266192,0.8229,2674.1,2673.8,6.493]
[1750107267389,0.8229,2674.1,2673.8,10.23292471]
[1750107268378,0.8229,2674.1,2673.8,6.493]
[1750107268578,0.8229,2674.1,2673.8,10.23299034]
[1750107269525,0.8229,2674.1,2673.8,6.493]
[1750107270081,0.8229,2674.1,2673.8,10.23298061]
[1750107270710,0.8229,2674.1,2673.6,5.2659009]
[1750107271022,0.8229,2674.1,2673.9,3.7397906]
[1750107276221,0.8229,2674.1,2674.0,3.73971578]
[1750107279558,0.8229,2674.1,2673.9,3.73979054]
[1750107282119,0.61370003,2674.7,2674.6,3.73887684]
[1750107282317,0.61370003,2674.7,2674.6,6.85088768]
[1750107282640,0.61370003,2674.7,2674.6,10.21587684]
[1750107285420,0.61370003,2674.7,2674.6,11.31429704]
[1750107286069,0.61370003,2674.7,2674.6,17.69733697]
[1750107286226,0.61370003,2674.7,2674.6,18.45933697]
[1750107286619,0.61370003,2674.7,2674.6,5.59695223]
[1750107286825,0.61370003,2674.7,2674.6,3.73887684]